Cogmind - Beta 9.2 @@@ ROGUE MODE // 2019.12.06 @ 00:20:28 Player: Judas Result: Destroyed by as-93603 with Assembled F-torch Performance ------------- Evolutions (0) 0 Regions Visited (2) 400 Robots Destroyed (12) 60 Value Destroyed (86) 86 Prototype IDs (0) 0 Alien Tech Used (0) 0 Bonus (0) 0 TOTAL SCORE: 546 Bonus ------- None Cogmind --------- Core Integrity 0/250 Matter 287/300 Energy 100/100 System Corruption 4% Temperature Cool (138) Movement Core (150) Ox2 Location -10/Mines Parts ------- > --- POWER (1) -------- (None) > --- PROPULSION (2) --- (None) > --- UTILITY (2) ------ Medium Storage Unit > --- WEAPON (2) ------- (None) > --- INVENTORY (8) ---- Ion Engine Aluminum Leg Aluminum Leg Wheel Compact Wheel Peak State ------------ > --- POWER ------------ Ion Engine > --- PROPULSION ------- Wheel Compact Wheel > --- UTILITY ---------- Small Storage Unit Sensor Array > --- WEAPON ----------- Assault Rifle Light Assault Rifle > --- INVENTORY -------- Ion Engine Aluminum Leg Aluminum Leg Compact Wheel Medium Laser [Rating: 7] Favorites ----------- Power Ion Engine Engine Ion Engine Propulsion Wheel Wheel Wheel Utility Small Storage Unit Device Sensor Array Storage Small Storage Unit Weapon Light Assault Rifle Energy Gun Medium Laser Ballistic Gun Light Assault Rifle Ballistic Cannon Light Cannon Launcher Grenade Launcher Build | -11 -10 -10 ------- Run | Scr Mat Min Slots Evolved . | . . . Power . | . . . Propulsion . | . . . Utility . | . . . Weapon . | . . . Parts Attached 14 | 6 5 3 Power 1 | 1 . . Engine 1 | 1 . . Core . | . . . Reactor . | . . . Propulsion 3 | 2 1 . Treads . | . . . Leg . | . . . Wheel 3 | 2 1 . Hover . | . . . Flight . | . . . Utility 3 | 1 2 . Device 1 | . 1 . Storage 2 | 1 1 . Processor . | . . . Hackware . | . . . Protection . | . . . Artifact . | . . . Weapon 7 | 2 2 3 Energy Gun 2 | 1 . 1 Energy Cannon . | . . . Ballistic Gun 3 | 1 1 1 Ballistic Cannon 1 | . . 1 Launcher 1 | . 1 . Special Weapon . | . . . Impact Weapon . | . . . Slashing Weapon . | . . . Piercing Weapon . | . . . Special Melee Weapon . | . . . Unidentified Prototypes . | . . . Parts Lost 9 | . . 9 Power 1 | . . 1 Propulsion 2 | . . 2 Utility 1 | . . 1 Weapon 5 | . . 5 Highest Loss Streak 9 | . . 9 Average Slot Usage (%) 90 | . 88 95 Engine 13 | . 14 13 Wheel 27 | . 28 27 Device 6 | . 3 14 Storage 14 | . 14 14 Energy Gun 6 | . 9 . Ballistic Gun 16 | . 18 13 Launcher 4 | . . 12 Naked Turns . | . . . Heaviest Build 19 | 12 19 19 Greatest Support 26 | 26 26 26 Greatest Overweight (x) 1 | 1 . . Average Overweight (x) . | . . . Largest Inventory Capacity 8 | 6 8 8 Average Capacity 6 | 5 6 8 Most Carried 8 | 6 7 8 Average Carried 5 | 3 6 7 Final Capacity 8 | 6 8 8 Final Carried 7 | 6 7 5 Class Distribution -------------------- 100% | Mutant Dominant Class ---------------- Mutant | -10/Materials Mutant | -10/Mines Resources | -11 -10 -10 ----------- Run | Scr Mat Min Matter Collected 370 | 268 62 40 Remotely . | . . . Salvage Created 331 | 93 200 38 Parts 21 | 6 15 . Haulers Intercepted 2 | . 2 . Recyclers Shooed . | . . . Parts Field Recycled . | . . . Retrieved Matter . | . . . Parts Self-Destructed . | . . . Prevented . | . . . Kills | -11 -10 -10 ------- Run | Scr Mat Min Combat Hostiles Destroyed 7 | . 2 5 Guns 4 | . 2 2 Cannons 1 | . . 1 AOE 2 | . . 2 Classes Destroyed 6 | 2 3 1 Worker 1 | . 1 . Tunneler 1 | 1 . . Hauler 2 | . 2 . Recycler 1 | 1 . . Grunt 2 | . 2 . Assembled 5 | . . 5 Best Kill Streak 5 | 1 3 5 Combat Bots Only 5 | . 1 5 Max Kills in Single Turn 2 | 1 1 2 Gunslinging . | . . . Exploded 2 | . . 2 Melee . | . . . Uniques/NPCs Destroyed . | . . . Combat | -11 -10 -10 -------- Run | Scr Mat Min Damage Taken 889 | . 102 787 Core 252 | . 19 233 Absorbed by Shields . | . . . Core Remaining (%) 100 | 100 . . Volleys Fired 34 | 8 20 6 Largest 2 | 2 2 2 Hottest 70 | 70 70 70 Shots Fired 65 | 16 39 10 Gun 61 | 16 39 6 Cannon 3 | . . 3 Launcher 1 | . . 1 Special . | . . . Kinetic 45 | 8 29 8 Thermal 19 | 8 10 1 Explosive 1 | . . 1 Electromagnetic . | . . . Robot Hit Streak 8 | 6 8 4 Robot Miss Streak 4 | 2 4 3 Penetration Max . | . . . Secondary Targets . | . . . Shots Hit Robots 38 | 11 22 5 Core Hits 22 | 4 10 8 Critical Hits . | . . . Critical Kills . | . . . Critical Parts Destroyed . | . . . Melee Attacks . | . . . Impact . | . . . Slashing . | . . . Piercing . | . . . Sneak Attacks . | . . . Combat Hostiles . | . . . Follow-up Attacks . | . . . Damage Inflicted 546 | 133 217 196 Guns 401 | 133 217 51 Cannons 52 | . . 52 Explosions 90 | . . 90 Melee . | . . . Ramming 3 | . . 3 Kinetic 313 | 57 166 90 Thermal 140 | 76 51 13 Explosive 90 | . . 90 Electromagnetic . | . . . Impact . | . . . Slashing . | . . . Piercing . | . . . Highest Corruption 4 | . . 4 Average Corruption 4 | . . 4 Corruption Purged . | . . . Overload Shots . | . . . Overflow Damage . | . . . Projectiles . | . . . Explosions . | . . . Melee . | . . . Knockbacks 2 | . . 2 Impact . | . . . Kinetic 1 | . . 1 Secondary 1 | . . 1 Self-Inflicted Damage 24 | . . 24 Shots 1 | . . 1 Rammed 1 | . . 1 Targets Rammed 1 | . . 1 Kicked . | . . . Crushed . | . . . Highest Temperature 123 | 80 92 123 Average Temperature 40 | 37 32 67 Received Heat Transfer 230 | . 30 200 Siege Activations . | . . . Robots Corrupted . | . . . Combat Hostiles . | . . . Parts Fried . | . . . Impact Corruptions . | . . . Robots Melted . | . . . Combat Hostiles . | . . . Parts Melted 1 | 1 . . Heat Transferred 407 | 222 148 37 Parts Sabotaged . | . . . Parts Stolen . | . . . Parts Stripped . | . . . Power Chain Reactions . | . . . Missiles Intercepted . | . . . Alert | -11 -10 -10 ------- Run | Scr Mat Min Peak Influence 94 | 10 94 36 Average Influence 30 | 3 36 33 Maximum Alert Level . | . . . Low Security (%) 100 | 100 100 100 Level 1 . | . . . Level 2 . | . . . Level 3 . | . . . Level 4 . | . . . Level 5 . | . . . High Security . | . . . Max Security . | . . . Squads Dispatched 2 | . 2 . Investigation . | . . . Extermination . | . . . Reinforcement 2 | . 2 . Assault . | . . . Garrison . | . . . Intercept . | . . . Construction Impeded . | . . . Haulers Reinforced . | . . . Stealth | -11 -10 -10 --------- Run | Scr Mat Min Distress Signals 1 | . 1 . Communications Jammed . | . . . Distress Signals . | . . . Times Spotted 29 | . 10 19 Peak Tracking Total 19 | . 5 19 Tactical Retreats 1 | . 1 . Traps | -11 -10 -10 ------- Run | Scr Mat Min Traps Triggered . | . . . Indirectly . | . . . Trap Hack Attempts . | . . . Triggered . | . . . Disarmed . | . . . Reprogrammed . | . . . Reused . | . . . Traps Extracted . | . . . Installed . | . . . Triggered . | . . . Machines | -11 -10 -10 ---------- Run | Scr Mat Min Machines Disabled . | . . . Max in Single Turn . | . . . Machines Sabotaged . | . . . Garrisons Compromised . | . . . Overloaded Fab Kills . | . . . Fab Network Shutdowns . | . . . Hacking | -11 -10 -10 --------- Run | Scr Mat Min Machines Accessed 2 | . 2 . Terminals 2 | . 2 . Fabricators . | . . . Repair Stations . | . . . Recycling Units . | . . . Scanalyzers . | . . . Garrison Access . | . . . Total Hacks 4 | . 4 . Successful 2 | . 2 . Failed 2 | . 2 . Catastrophic . | . . . Database Lockouts . | . . . Manual 1 | . 1 . Terminals 4 | . 4 . Fabricators . | . . . Repair Stations . | . . . Recycling Units . | . . . Scanalyzers . | . . . Garrison Access . | . . . Terminal Hacks 2 | . 2 . Record 2 | . 2 . Fabricator Hacks . | . . . Repair Station Hacks . | . . . Recycling Unit Hacks . | . . . Scanalyzer . | . . . Garrison Access Hacks . | . . . Unauthorized Hacks 1 | . 1 . Terminals . | . . . Fabricators . | . . . Repair Stations . | . . . Recycling Units . | . . . Scanalyzers . | . . . Garrison Access . | . . . Data Cores Recovered . | . . . Used . | . . . Hacking Detections 2 | . 2 . Full Trace Events . | . . . Feedback Events . | . . . Feedback Blocked . | . . . Robot Schematics Acquired . | . . . Robots Built . | . . . Matter . | . . . Time . | . . . Total Robot Build Rating . | . . . Part Schematics Acquired . | . . . Parts Built . | . . . Matter . | . . . Time . | . . . Total Part Build Rating . | . . . Parts Repaired . | . . . Time . | . . . Parts Recycled . | . . . Recycled Matter . | . . . Retrieved Matter . | . . . Retrieved Components . | . . . Parts Scanalyzed . | . . . Part Schematics Acquired . | . . . Parts Damaged . | . . . Bothacking | -11 -10 -10 ------------ Run | Scr Mat Min Used RIF Installer . | . . . Robots Hacked . | . . . Non-combat . | . . . Combat . | . . . Robot Hacks Applied . | . . . Relay Couplers Released . | . . . Robots Rewired . | . . . Allies Hacked . | . . . Hacks Repelled . | . . . Allies | -11 -10 -10 -------- Run | Scr Mat Min Total Allies . | . . . Largest Group . | . . . Highest-Rated Group . | . . . Highest-Rated Ally . | . . . Total Orders . | . . . Ally Attacks . | . . . Total Damage . | . . . Kills . | . . . Allies Corrupted . | . . . Allies Melted . | . . . Intel | -11 -10 -10 ------- Run | Scr Mat Min Robot Analysis Total . | . . . Derelict Logs Recovered . | . . . Drone Launches . | . . . Drone Recoveries . | . . . Exploration | -11 -10 -10 ------------- Run | Scr Mat Min Turns Passed 499 | 86 278 135 Spaces Moved 387 | 55 205 127 Core 4 | 4 . . Treads . | . . . Legs . | . . . Wheels 383 | 51 205 127 Hover . | . . . Flight . | . . . Fastest Speed 50 | 50 90 90 Average Speed 89 | 89 90 90 Slowest Speed 100 | 100 90 90 Overloaded Moves . | . . . Propulsion Burnouts . | . . . Robots Hopped . | . . . Cave-ins Triggered . | . . . Exploration Rate (%) 25 | 4 39 33 Regions Visited 2 Branch Regions 1 Pre-discovered Areas . | . . . Known Exits Taken . | . . . Unknown Exits Taken 2 | 1 1 . Scrap Searched 3 | . . 3 Spaces Dug . | . . . Terrain Destroyed 11 | . . 11 Melee . | . . . Projectile . | . . . AOE 11 | . . 11 Actions | -11 -10 -10 --------- Run | Scr Mat Min Total 475 | 74 263 138 Wait 28 | . 28 . Move 385 | 54 204 127 Hop . | . . . Pick Up 10 | 6 3 1 Fast Attach 6 | 6 . . Attach 4 | . 1 3 Detach . | . . . Swap 4 | . 4 . Drop 3 | . 3 . Fire 34 | 8 20 6 Melee . | . . . Ram 1 | . . 1 Kick . | . . . Crush . | . . . Escape Stasis . | . . . Rewire . | . . . Trap . | . . . Miscellaneous . | . . . Route ------- -11/Scrapyard -10/Materials -10/Mines History --------- Turn | Location | Event 19 | -11/Scrapyard | Discovered new exit (range 16) 87 | -11/Scrapyard | Entered Materials 214 | -10/Materials | Discovered new exit (range 15) 352 | -10/Materials | Build established: Mutant 365 | -10/Materials | Entered Mines 378 | -10/Mines | Assisted by bots powering up and referring to "LRC-V3" 470 | -10/Mines | Assembled infested the area 495 | -10/Mines | Core integrity fell below 50% 498 | -10/Mines | Core integrity fell below 20% 500 | -10/Mines | Destroyed by as-93603 with Assembled F-torch Last Messages --------------- 00488_ as-91286 sneak attacks. 00488_ K-01 Serf system corrupted by crushing effect. 00488_ U-05 Engineer lays Concrete. 00489_ K-01 Serf system terminally corrupted. 00489_ as-45497 destroyed. 00490_ K-01 Serf collects debris. 00492_ U-05 Engineer destroyed. 00493_ Com. Wheel destroyed. 00493_ Lgt. Cannon destroyed. 00493_ System corrupted by crushing effect (+3). 00493_ System corrupted by crushing effect (+1). 00494_ Assault Rifle destroyed. 00496_ Ion Engine destroyed. 00497_ as-84725 destroyed. 00497_ as-88998 destroyed. 00498_ Med. Laser destroyed. 00499_ Lgt. Assault Rifle destroyed. 00500_ Slammed into as-93603. 00500_ Wheel destroyed. 00500_ Sensor Array destroyed. Map ----- +----------------------------------------------------+ | ???????????????????????## ##????????????????? | | ?????????????############ #????????????????? | | ????????????## ## #????????????????? | | ????????????# ##????????????????? | | ????????????### ### ##?????????????????? | | ??????????#### #?## ##??????????????????? | | ?????????## #??# ###???????????????????? | | ?????????# ##??# ##?????????????????????? | | ?????????# ####??# #??????????????????????? | | ??????#### #????# ??????????????????????? | | ???#### #????# ###?????????????????????? | | ???# ==####????# ###???????????????????????? | | ???#! %#???##### #??????#??????????????????? | | ???#% ######## ##???? #??????????????????? | | ???# #### ##?? ##?????????????????? | | ???# """ ### #?????????????????? | | ??## #### """ #?????????????????? | | ??# #??# ##? """ #??????????????????? | | ??# #### #### #???????????????????? | | ??# ## ##??# #????????????????????? | | ??# ##??# ###????????????????????? | | ?## ##### ##??????????????????????? | | ?# #### ##???????????????????????? | | ?# #?# ######?????????????????????? | | ?## ## #?# ###aa## ####### #??????????? | | ??# ##?# ##?# @a! #??????????? | | ??## ###???###??#####aaaaa a a a #?????????? | | ???####??????????????a%aa #????????? | | ????????????????????# # #????????? | | ????????????????????#### ####?? #????????? | | ???????????????????????? #???????? !%????????? | | ???????????????????????? #????????????????????? | | ????????????????????????? ????????????????????? | | ?????????????????????????#????????????????????? | | ??????????????????????????????????????????????? | | ??????????????????????????????????????????????? | | ??????????????????????????????????????????????? | | ??????????????????????????????????????????????? | | ??????????????????????????????????????????????? | | ??????????????????????????????????????????????? | | ??????????????????????????????????????????????? | | ??????????????????????????????????????????????? | | ??????????????????????????????????????????????? | | ??????????????????????????????????????????????? | | ??????????????????????????????????????????????? | | ??????????????????????????????????????????????? | | ??????????????????????????????????????????????? | | | | | | | +----------------------------------------------------+ Best States ------------- Heat Dissipation 25 Energy Generation 10 Energy Capacity 250 Matter Stores 300 Matter Capacity 300 Sight Range 16 Robot Scan Range 10 Terrain Scan Density 10 Evasion (%) 42 Item Schematics ----------------- None Robot Schematics ------------------ None Fabricated ------------ Nothing Alien Tech Used ----------------- None Achievements -------------- None Challenges ------------ None Game ------ Seed BladeMagneticNukerbomber Manual? 0 Play Time 00:13:13 Cumulative 23.9 hours Start 2019.12.06 @ 00:06:21 End 2019.12.06 @ 00:20:28 Sessions 1 Manual Loads 0 Difficulty Rogue Special Mode None Game No. 45 Rogue 45 Adventurer 0 Explorer 0 Win Type - Total 0 Types 0/0/0/0/0/0/0 Lore% 21 Gallery% 27 Achievement% 22 Wizard Run 0 Options --------- ASCII 0 Keyboard 0 Movement Mouse Keybinds 0 Fullscreen 1 Font 18/SmallcapsGlow Map View 76x50 Tactical HUD 1 Map Filters NONE Filters NONE Steam 1 RUN: 53ac91d2-7e00-4354-b0df-4122241ea73d